bitfinex/quotes_SOLUSD_20250123
["timestamp","ask_amount","ask_price","bid_price","bid_amount"]
[1737611943200,0.063,248.97,248.96,327.63035784]
[1737611945502,0.063,248.97,248.96,327.66035784]
[1737611951792,83.1,249.04,248.99,20.0]
[1737611952122,0.063,249.08,249.05,20.0]
[1737611952416,0.063,249.08,249.0,31.30533459]
[1737611952417,0.063,249.08,249.07,7.42575936]
[1737611953436,0.063,249.08,249.07,11.44065936]
[1737611953843,0.063,249.08,249.07,15.60953142]
[1737611955035,0.063,249.08,249.07,327.60953142]
[1737611955539,0.063,249.08,249.07,312.0]
[1737611958619,0.063,249.08,249.07,323.59463142]
[1737611963741,0.063,249.08,249.07,324.59463142]
[1737611964429,0.063,249.09,249.08,4.0147]
[1737611964745,83.1,249.21,249.11,20.0]
[1737611964945,1.5204,249.24,249.16,11.59463142]
[1737611965623,18.11163142,249.23,249.14,11.59463142]
[1737611965950,11.59463142,249.21,249.12,12.19653814]
[1737611966449,11.59463142,249.21,249.13,4.0139]
[1737611967153,23.839884,249.22,249.14,11.59463142]
[1737611967632,23.839884,249.22,249.2,312.0]
[1737611969853,11.59463142,249.21,249.13,4.0139]
[1737611970247,11.59463142,249.21,249.12,11.59463142]
[1737611970248,11.59463142,249.21,249.12,15.60863142]
[1737611970749,106.876884,249.18,249.11,20.0]
[1737611970920,11.59463142,249.17,249.08,15.60923142]
[1737611971751,11.59463142,249.17,249.11,20.0]
[1737611972725,11.59463142,249.17,249.12,312.0]
[1737611973551,27.790384,249.16,249.12,312.0]
[1737611974145,11.59463142,249.15,249.12,312.0]
[1737611974450,83.1,249.12,249.02,31.59463142]
[1737611974641,11.59463142,249.05,248.98,14.11183142]
[1737611974832,11.59463142,249.07,248.99,4.0161]
[1737611975851,7.42716854,249.06,249.01,20.0]
[1737611976246,23.776884,249.05,248.97,7.45716854]
[1737611976451,23.776884,249.05,248.97,11.47356854]
[1737611976749,7.42716854,249.04,248.98,20.0]
[1737611978343,7.42716854,249.04,248.97,0.03]
[1737611978527,7.42716854,249.02,248.97,0.03]
[1737611980554,23.776884,249.01,248.97,0.03]
[1737611981731,83.1,249.04,248.97,0.03]
[1737611981932,83.1,249.04,248.97,7.45716854]
[1737611982145,83.1,249.04,248.99,7.42716854]
[1737611982746,83.1,249.04,248.99,11.44326854]
[1737611983740,83.1,249.04,248.97,0.63229859]
[1737611983741,83.1,249.04,249.0,15.61817525]
[1737611988945,94.70217525,249.09,249.0,15.61817525]
[1737611989267,83.1,249.09,249.02,11.60217525]
[1737611990665,83.1,249.09,249.03,4.0155]
[1737611991346,83.1,249.09,249.02,11.60217525]
[1737611991550,83.1,249.09,249.02,15.61787525]
[1737611993067,23.776884,249.08,249.02,15.61787525]
[1737611997871,23.776884,249.08,249.02,4.0157]
[1737611998079,23.776884,249.08,249.0,31.63217525]
[1737611998270,23.776884,249.08,249.01,4.0159]
[1737612001158,23.776884,249.08,249.0,35.64807525]
[1737612003860,23.776884,249.08,249.01,20.0]
[1737612004165,23.776884,249.08,249.02,4.0157]
[1737612004981,23.776884,249.08,249.01,4.0159]
[1737612005181,90.9941,249.09,249.02,11.60217525]
[1737612005770,90.9941,249.09,249.01,11.44061124]
[1737612006491,23.776884,249.01,249.0,0.03]
[1737612006789,30.090584,249.01,249.0,0.03]
[1737612006980,65.40592896,249.01,249.0,0.03]
[1737612007572,31.691184,249.01,249.0,0.03]
[1737612009193,61.39002896,249.01,249.0,0.03]
[1737612009778,51.20159524,248.98,248.97,0.03]
[1737612011095,31.20159524,248.98,248.97,0.03]
[1737612011671,7.42471124,248.98,248.97,0.03]
[1737612018400,31.20159524,248.98,248.97,0.03]
[1737612027313,7.42471124,249.0,248.97,0.03]
[1737612027611,11.43971124,249.07,248.98,7.42471124]
[1737612027809,83.1,249.03,248.98,7.42471124]
[1737612030690,83.163,249.03,248.98,7.42471124]
[1737612031614,23.776884,249.02,248.97,312.03]
[1737612031810,23.776884,249.02,248.97,0.03]
[1737612032691,23.776884,249.0,248.97,0.03]
[1737612034716,27.792984,249.0,248.97,0.03]
[1737612036724,23.776884,248.98,248.97,0.03]
[1737612037724,27.793184,248.98,248.97,0.03]
[1737612038110,23.776884,248.98,248.97,0.03]
[1737612046525,27.793184,248.98,248.97,0.03]
[1737612046700,7.42471124,249.01,248.97,0.03]
[1737612046903,4.0787,249.02,248.97,0.03]
[1737612047248,0.063,249.02,248.97,0.03]
[1737612047932,0.063,249.02,249.0,7.42471124]
[1737612050813,83.163,249.02,249.0,7.42471124]
[1737612053325,83.163,249.02,248.98,7.42471124]
[1737612053931,35.21749524,249.01,248.97,0.03]
[1737612054131,83.163,249.02,248.97,0.03]
[1737612054508,83.163,249.02,248.97,7.45471124]
[1737612054745,83.163,249.02,248.97,11.47121124]
[1737612055408,83.163,249.02,248.99,7.42471124]
[1737612057507,0.063,249.02,249.01,7.42471124]
[1737612057716,0.063,249.02,249.01,10.67543567]
[1737612059507,0.063,249.02,249.01,14.69133567]
[1737612059709,0.063,249.02,249.01,17.86263932]
[1737612059918,0.063,249.02,249.01,6.26662443]
[1737612060539,0.063,249.02,249.01,318.26662443]
[1737612060732,0.063,249.02,249.01,317.6644]
[1737612061032,0.063,249.02,249.01,318.6644]
[1737612061336,0.063,249.03,249.02,1.0]
[1737612061507,0.063,249.03,249.02,12.59601489]
[1737612064541,0.063,249.03,249.02,324.59601489]
[1737612065206,0.063,249.09,249.04,1.0]
[1737612065422,0.063,249.09,249.08,11.59601489]
[1737612066035,0.063,249.09,249.08,15.61071489]
[1737612068043,0.063,249.09,249.08,16.21271905]
[1737612068238,0.063,249.09,249.08,328.21271905]
[1737612068439,0.063,249.09,249.08,327.61071489]
[1737612070228,0.0001,249.09,249.08,327.61071489]
[1737612070429,0.0001,249.09,249.08,357.61071489]
[1737612079765,0.0001,249.09,249.08,353.4319417]
[1737612080239,0.0001,249.09,249.08,357.90744494]
[1737612080439,0.0001,249.09,249.08,362.19491109]
[1737612082767,0.0001,249.09,249.08,385.97179509]
[1737612083064,0.063,249.17,249.14,4.0138]
[1737612083267,0.063,249.17,249.16,7.4172417]
[1737612085371,0.063,249.17,249.16,11.4306417]
[1737612086152,0.063,249.22,249.21,7.4172417]
[1737612086369,0.063,249.22,249.21,319.4172417]
[1737612087945,0.063,249.22,249.21,323.4298417]
[1737612095391,0.063,249.22,249.21,11.4298417]
[1737612097991,0.063,249.27,249.25,21.0]
[1737612098160,0.063,249.34,249.32,7.4172417]
[1737612098354,0.063,249.42,249.35,20.0]
[1737612098663,0.063,249.42,249.38,7.4172417]
[1737612099985,0.063,249.42,249.41,20.0]
[1737612100154,0.063,249.42,249.41,27.4172417]
[1737612101055,0.0001,249.42,249.41,28.01847127]
[1737612101261,1.6482,249.52,249.41,28.01847127]
[1737612101262,1.6482,249.52,249.42,1.0]
[1737612101568,1.6482,249.52,249.45,7.4172417]
[1737612101882,0.03,249.53,249.45,323.55451374]
[1737612102088,0.03,249.53,249.45,327.56331374]
[1737612104394,83.1,249.51,249.45,11.55451374]
[1737612104691,11.55451374,249.49,249.41,11.55451374]
[1737612105194,11.55451374,249.49,249.41,15.56381374]
[1737612105368,11.55451374,249.49,249.41,11.55451374]
[1737612105566,11.55451374,249.49,249.34,5.07677867]
[1737612105567,15.56271374,249.49,249.39,15.56411374]
[1737612105987,15.56271374,249.49,249.41,11.55451374]
[1737612106171,94.65451374,249.51,249.41,11.55451374]
[1737612106694,11.55451374,249.49,249.39,15.56411374]
[1737612107303,11.55451374,249.49,249.41,11.55451374]
[1737612109296,11.55451374,249.49,249.44,20.0]
[1737612109491,83.1,249.51,249.44,15.56341374]
[1737612112776,83.1,249.51,249.44,327.56341374]
[1737612113176,83.1,249.51,249.44,15.56341374]
[1737612113586,15.063,249.46,249.44,15.56341374]
[1737612116106,15.063,249.46,249.45,312.0]
[1737612117909,15.063,249.46,249.44,15.56341374]
[1737612120915,15.063,249.46,249.44,327.56341374]
[1737612121705,15.063,249.46,249.44,11.55451374]
[1737612122309,15.063,249.46,249.44,15.56341374]
[1737612128619,15.063,249.46,249.44,327.56341374]
[1737612128914,15.063,249.46,249.44,15.56341374]
[1737612131588,83.1,249.45,249.42,0.03]
[1737612131917,83.1,249.44,249.42,0.03]
[1737612135918,124.82041983,249.43,249.42,0.03]
[1737612137514,89.4749,249.43,249.42,0.03]
[1737612138723,83.1,249.43,249.42,0.03]
[1737612139611,15.063,249.46,249.42,0.03]
[1737612139927,15.063,249.46,249.44,11.56863583]
[1737612141413,15.063,249.46,249.44,15.57753583]
[1737612142831,15.063,249.46,249.44,327.57753583]
[1737612144807,15.063,249.46,249.44,323.56863583]
[1737612146013,15.063,249.46,249.44,11.56863583]
[1737612146734,15.063,249.46,249.44,15.57753583]
[1737612148922,15.063,249.46,249.45,312.0]
[1737612149931,15.063,249.46,249.44,11.56863583]
[1737612150113,15.063,249.46,249.42,0.03]
[1737612150430,83.1,249.45,249.42,0.03]
[1737612150828,36.90061983,249.43,249.42,0.03]
[1737612151414,23.776884,249.39,249.26,11.56863583]
[1737612151636,23.776884,249.33,249.26,11.56863583]
[1737612152240,1.5551,249.43,249.28,11.56863583]
[1737612152241,11.56863583,249.36,249.28,11.56863583]
[1737612152923,5.11141682,249.43,249.26,11.56863583]
[1737612152924,23.776884,249.33,249.26,11.56863583]
[1737612153125,11.56863583,249.36,249.26,11.56863583]
[1737612153337,11.56863583,249.36,249.28,11.56863583]
[1737612154414,11.56863583,249.36,249.28,15.57993583]
[1737612155515,94.66863583,249.38,249.3,11.56863583]
[1737612155731,83.1,249.38,249.3,11.56863583]
[1737612156028,83.1,249.38,249.3,323.56863583]
[1737612156233,94.66863583,249.38,249.3,11.56863583]
[1737612156735,11.56863583,249.34,249.28,4.0113]
[1737612156940,11.56863583,249.34,249.28,20.0]
[1737612157429,94.66863583,249.32,249.24,4.012]
[1737612158041,94.66863583,249.32,249.26,20.0]
[1737612158215,83.1,249.32,249.27,11.56863583]
[1737612159429,83.1,249.32,249.27,15.58023583]
[1737612159616,83.1,249.32,249.27,4.0116]
[1737612163335,83.1,249.3,249.27,4.0116]
[1737612164641,83.1,249.3,249.27,15.58023583]
[1737612165122,83.1,249.3,249.27,4.0116]
[1737612168143,83.1,249.3,249.24,20.0]
[1737612168144,94.66863583,249.3,249.24,20.0]
[1737612168347,94.66863583,249.3,249.21,0.1]
[1737612168348,94.66863583,249.28,249.21,0.1]
[1737612169450,83.1,249.23,249.21,0.1]
[1737612169749,11.56863583,249.22,249.21,0.1]
[1737612170145,35.34551983,249.22,249.21,0.1]
[1737612173449,35.34551983,249.22,249.21,0.13]
[1737612174127,94.66863583,249.28,249.21,4.1426]
[1737612174951,23.776884,249.27,249.21,4.1426]
[1737612175248,94.66863583,249.28,249.21,15.71123583]
[1737612175435,83.1,249.28,249.23,11.56863583]
[1737612176645,83.1,249.28,249.21,4.1426]
[1737612176646,23.776884,249.27,249.21,11.69863583]
[1737612176845,23.776884,249.27,249.21,0.13]
[1737612177224,11.56863583,249.26,249.21,0.13]
[1737612177450,106.876884,249.23,249.21,0.13]
[1737612180949,11.56863583,249.22,249.21,0.13]
[1737612181154,10.0287,249.29,249.21,0.13]
[1737612181155,83.1,249.23,249.21,15.71123583]
[1737612181734,83.1,249.27,249.21,15.71123583]
[1737612181953,83.1,249.27,249.23,11.56863583]
[1737612182459,83.1,249.27,249.25,11.56863583]
[1737612182962,83.1,249.31,249.25,11.56863583]
[1737612183140,83.1,249.31,249.27,11.56863583]
[1737612183724,83.1,249.31,249.27,323.56863583]
[1737612184953,83.1,249.31,249.27,15.58023583]
[1737612185856,83.1,249.31,249.27,11.56863583]
[1737612187243,83.1,249.3,249.27,11.56863583]
[1737612188557,83.1,249.3,249.25,11.59863583]
[1737612189157,83.1,249.3,249.25,15.61053583]
[1737612189538,83.1,249.3,249.25,0.03]
[1737612189539,35.34551983,249.29,249.25,0.03]
[1737612190758,39.35691983,249.29,249.25,0.03]
[1737612192261,35.34551983,249.29,249.25,0.03]
[1737612193058,83.1,249.28,249.25,0.03]
[1737612195459,122.45721983,249.27,249.25,0.03]
[1737612195757,39.35721983,249.27,249.25,0.03]
[1737612195948,15.58033583,249.27,249.25,0.03]
[1737612203637,7.4154605,249.26,249.25,0.03]
[1737612205067,31.1923445,249.26,249.25,0.03]
[1737612205271,35.2041445,249.26,249.25,0.03]
[1737612205756,20.0,249.22,249.21,0.13]
[1737612206064,31.1923445,249.22,249.21,0.13]
[1737612206271,23.776884,249.22,249.21,0.13]
[1737612209261,15.60046881,249.24,249.21,0.13]
[1737612209262,11.58826881,249.24,249.21,0.13]
[1737612209583,23.776884,249.25,249.21,0.13]
[1737612210162,27.788584,249.27,249.21,0.13]
[1737612210770,35.36515281,249.26,249.21,0.13]
[1737612211073,23.776884,249.23,249.21,0.13]
[1737612212475,27.789284,249.23,249.21,0.13]
[1737612213275,11.58826881,249.24,249.21,0.13]
[1737612213677,23.776884,249.23,249.21,0.13]
[1737612214283,35.36515281,249.22,249.21,0.13]
[1737612215087,39.37765281,249.22,249.21,0.13]
[1737612217487,40.37765281,249.22,249.21,0.13]
[1737612218287,21.0,249.18,249.17,0.03]
[1737612218491,62.79695281,249.18,249.17,0.0001]
[1737612218671,62.79695281,249.18,249.02,0.03]
[1737612218672,20.0,249.14,249.02,0.03]
[1737612218874,11.58826881,249.09,249.02,0.03]
[1737612219083,35.36515281,249.09,249.02,0.03]
[1737612219282,35.36515281,249.09,249.02,4.0455]
[1737612219468,23.776884,249.09,249.03,11.58826881]
[1737612220183,23.776884,249.09,249.03,15.60376881]
[1737612221491,35.36515281,249.09,249.02,0.03]
[1737612221673,24.776884,249.08,249.02,0.03]
[1737612221875,35.36515281,249.03,249.02,0.03]
[1737612223291,11.58826881,249.03,249.02,0.03]
[1737612223496,11.58826881,249.07,249.02,0.03]
[1737612223990,23.776884,249.06,249.02,0.03]
[1737612226590,23.776884,249.04,249.02,0.03]
[1737612228201,11.58826881,249.09,249.02,0.03]
[1737612228573,23.776884,249.08,249.02,0.03]
[1737612228991,94.68826881,249.11,249.02,11.61826881]
[1737612229376,19.050069,249.18,249.08,11.58826881]
[1737612229377,83.1,249.1,249.08,11.58826881]
[1737612229675,83.1,249.09,249.08,11.58826881]
[1737612229987,83.1,249.18,249.08,11.58826881]
[1737612230177,83.1,249.17,249.11,11.58826881]
[1737612230767,83.1,249.17,249.03,1.5168]
[1737612230768,83.1,249.15,249.07,11.58826881]
[1737612231196,83.1,249.15,249.09,11.58826881]
[1737612231977,83.163,249.15,249.09,11.58826881]
[1737612233004,0.063,249.15,249.13,11.58826881]
[1737612237106,0.063,249.15,249.13,323.58826881]
[1737612238205,0.063,249.15,249.13,11.58826881]
[1737612239499,0.063,249.15,249.11,11.58826881]
[1737612240503,0.063,249.15,249.13,11.58826881]
[1737612242706,0.063,249.15,249.14,1.5168]
[1737612243081,83.1,249.24,249.16,20.0]
[1737612243304,83.1,249.24,249.2,11.58826881]
[1737612244117,83.1,249.24,249.21,4.0126]
[1737612245403,0.063,249.25,249.21,4.0126]
[1737612245604,0.063,249.25,249.21,316.0126]
[1737612245793,0.063,249.25,249.17,4.0131]
[1737612245794,23.776884,249.24,249.17,4.0131]
[1737612245989,11.58826881,249.23,249.17,4.0131]
[1737612246198,23.776884,249.22,249.14,11.58826881]
[1737612246403,106.876884,249.18,249.1,15.60256881]
[1737612246926,106.876884,249.18,249.08,1.5352]
[1737612246927,23.776884,249.14,249.06,15.60316881]
[1737612247099,106.876884,249.14,249.06,15.60326881]
[1737612247301,106.876884,249.14,249.08,11.58826881]
[1737612247614,106.876884,249.14,249.06,4.015]
[1737612247615,106.876884,249.14,249.06,15.60326881]
[1737612248124,83.1,249.14,249.09,4.0146]
[1737612248497,83.1,249.14,249.1,11.58826881]
[1737612248712,83.1,249.14,249.13,11.58826881]
[1737612249320,83.1,249.14,249.07,20.0]
[1737612249321,94.68826881,249.14,249.07,20.0]
[1737612249624,23.776884,249.13,249.05,35.60346881]
[1737612250126,11.58826881,249.12,249.05,24.0152]
[1737612251630,23.776884,249.11,249.05,24.0152]
[1737612251828,83.1,249.08,249.03,4.0154]
[1737612252145,106.876884,249.07,249.02,0.03]
[1737612252623,83.1,249.07,249.02,0.03]
[1737612252809,83.1,249.07,249.02,11.61826881]
[1737612254536,83.1,249.07,249.03,4.0155]
[1737612254834,35.36515281,249.06,249.02,0.03]
[1737612255138,23.776884,249.06,249.05,0.03]
[1737612258213,83.1,249.07,249.05,0.03]
[1737612258417,83.1,249.06,249.05,0.03]
[1737612260315,83.1,249.06,249.05,4.0452]
[1737612260515,83.1,249.06,249.05,0.03]
[1737612262926,83.1,249.06,249.05,312.03]
[1737612265929,83.1,249.06,249.05,0.03]
[1737612268827,83.1,249.06,249.05,312.03]
[1737612269452,83.1,249.06,249.05,0.03]
[1737612272558,83.1,249.06,249.05,312.03]
[1737612275156,83.1,249.06,249.05,0.03]
[1737612276653,79.23496164,249.06,249.05,0.03]
[1737612278129,79.23496164,249.06,249.05,312.03]
[1737612278325,79.23496164,249.06,249.05,0.03]
[1737612279331,23.776884,249.06,249.05,0.03]
[1737612279557,35.36515281,249.06,249.05,0.03]
[1737612283459,23.60826881,249.24,249.05,0.03]
[1737612283460,11.58826881,249.12,249.05,0.03]
[1737612283839,23.776884,249.11,249.05,0.03]
[1737612285151,23.776884,249.09,249.05,0.03]
[1737612285354,23.776884,249.09,249.05,312.03]
[1737612286062,83.1,249.09,249.06,11.58826881]
[1737612286262,83.1,249.09,249.08,11.58826881]
[1737612288241,83.1,249.09,249.08,15.60296881]
[1737612289069,83.1,249.13,249.08,327.60296881]
[1737612290569,83.1,249.13,249.08,15.60296881]
[1737612292576,83.163,249.13,249.08,15.60296881]
[1737612293671,83.163,249.13,249.08,4.0147]
[1737612294173,83.1,249.12,249.08,4.0147]
[1737612294476,83.1,249.12,249.06,15.63316881]
[1737612296770,83.1,249.12,249.06,327.63316881]
[1737612298279,83.1,249.12,249.06,15.63316881]
[1737612299686,83.1,249.12,249.06,0.03]
[1737612300177,83.1,249.11,249.06,0.03]
[1737612300875,83.1,249.11,249.06,4.045]
[1737612301383,83.1,249.1,249.06,316.045]
[1737612304267,83.1,249.1,249.06,4.045]
[1737612304983,83.1,249.08,249.06,0.03]
[1737612307576,23.776884,249.07,249.06,0.03]
[1737612307773,7.42285553,249.08,249.06,0.03]
[1737612307990,7.48585553,249.1,249.06,0.03]
[1737612310580,7.48585553,249.1,249.06,312.03]
[1737612312197,7.48585553,249.1,249.06,0.03]
[1737612312389,23.776884,249.09,249.06,0.03]
[1737612312695,7.48585553,249.1,249.06,0.03]
[1737612316389,23.776884,249.09,249.06,0.03]
[1737612320193,7.42285553,249.08,249.06,0.03]
[1737612320683,23.776884,249.07,249.06,0.03]
[1737612323206,0.063,249.1,249.06,0.03]
[1737612323976,0.063,249.1,249.07,7.42285553]
[1737612324193,0.063,249.1,249.09,7.42285553]
[1737612324402,0.063,249.1,249.09,11.89835877]
[1737612325014,0.063,249.1,249.09,15.91295877]
[1737612327006,0.063,249.1,249.09,327.91295877]
[1737612331609,0.063,249.1,249.09,4.47550324]
[1737612331812,0.063,249.1,249.06,4.045]
[1737612332689,0.063,249.1,249.06,11.46785553]
[1737612334603,0.063,249.1,249.06,323.46785553]
[1737612336618,0.063,249.1,249.06,316.045]
[1737612336912,23.839884,249.1,249.06,0.03]
[1737612337124,83.1,249.08,249.06,0.03]
[1737612337499,7.42285553,249.09,249.06,0.03]
[1737612337500,106.876884,249.07,249.06,0.03]
[1737612337718,114.29973953,249.07,249.06,0.03]
[1737612337930,106.876884,249.07,249.06,0.03]
[1737612338094,83.1,249.07,249.06,0.03]
[1737612338695,106.876884,249.07,249.06,0.03]
[1737612340822,31.19973953,249.07,249.06,0.03]
[1737612341705,37.21443953,249.07,249.06,0.03]
[1737612343822,38.21443953,249.07,249.06,0.03]
[1737612346127,39.21443953,249.07,249.06,0.03]
[1737612347541,0.063,249.1,249.06,0.03]
[1737612348521,23.839884,249.1,249.06,0.03]
[1737612348719,0.063,249.1,249.06,0.03]
[1737612348925,23.839884,249.1,249.06,0.03]
[1737612349310,23.776884,249.08,249.06,0.03]
[1737612350033,0.063,249.1,249.06,0.03]
[1737612350034,23.839884,249.1,249.06,0.03]
[1737612350410,0.063,249.1,249.06,312.03]
[1737612351227,0.063,249.1,249.06,0.03]
[1737612354239,0.063,249.1,249.06,312.03]
[1737612354425,0.063,249.1,249.06,316.045]
[1737612357632,0.063,249.1,249.06,0.03]
[1737612357633,23.776884,249.09,249.06,0.03]
[1737612357937,7.42285553,249.08,249.06,0.03]
[1737612359543,27.791784,249.07,249.06,0.03]
[1737612359845,28.791784,249.07,249.06,0.03]
[1737612361041,27.791784,249.07,249.06,0.03]
[1737612361342,28.791784,249.07,249.06,0.03]
[1737612362224,28.791784,249.07,249.05,0.0001]
[1737612362225,169.99973953,249.06,249.05,0.0001]
[1737612362419,23.776884,249.0,248.96,0.03]
[1737612362744,31.19973953,248.98,248.96,0.03]
[1737612363440,23.776884,248.97,248.96,0.03]
[1737612363647,23.776884,248.97,248.85,0.03]
[1737612363648,20.0,248.9,248.85,0.03]
[1737612363827,31.19973953,248.86,248.85,0.03]
[1737612364032,44.776884,248.84,248.83,0.03]
[1737612364343,23.776884,248.84,248.83,0.03]
[1737612365441,31.19973953,248.84,248.83,0.03]
[1737612365814,35.40624134,248.84,248.83,0.03]
[1737612366639,83.1,248.85,248.83,0.03]
[1737612367045,83.1,248.93,248.84,11.62935734]
[1737612367330,83.1,248.93,248.86,11.62935734]
[1737612367850,23.776884,248.92,248.87,4.0181]
[1737612368431,23.776884,248.92,248.87,316.0181]
[1737612369621,35.40624134,248.92,248.87,312.0]
[1737612370549,23.776884,248.89,248.83,5.6434]
[1737612370736,23.776884,248.87,248.83,0.03]
[1737612370938,83.1,248.86,248.83,0.03]
[1737612371961,23.776884,248.85,248.83,0.03]
[1737612372752,83.1,248.84,248.83,0.03]
[1737612373054,94.72935734,248.84,248.83,0.03]
[1737612373530,118.50624134,248.84,248.83,0.03]
[1737612373737,122.52484134,248.84,248.83,0.03]
[1737612374841,118.50624134,248.84,248.83,0.03]
[1737612375044,83.1,248.84,248.83,0.03]
[1737612376537,83.1,248.9,248.83,0.03]
[1737612376934,83.1,248.9,248.87,11.62935734]
[1737612377444,11.62935734,248.98,248.89,11.62935734]
[1737612378055,94.72935734,249.0,248.91,11.62935734]
[1737612378557,23.776884,248.99,248.91,11.62935734]
[1737612378730,94.72935734,249.0,248.91,11.62935734]
[1737612379230,23.776884,248.99,248.91,327.64675734]
[1737612379654,94.72935734,249.0,248.91,327.64675734]
[1737612379959,11.62935734,248.98,248.91,312.0]
[1737612380166,23.776884,248.97,248.91,323.62935734]
[1737612380458,23.776884,248.99,248.91,323.62935734]
[1737612380655,83.1,248.9,248.83,0.03]
[1737612380841,106.876884,248.86,248.83,0.03]
[1737612386253,83.1,248.85,248.83,0.03]
[1737612390659,23.776884,248.84,248.83,0.03]
[1737612395968,11.62935734,248.85,248.83,0.03]
[1737612396267,11.62935734,248.87,248.83,0.03]
[1737612396569,23.776884,248.86,248.83,0.03]
[1737612399369,83.1,248.86,248.83,11.65935734]
[1737612401468,83.1,248.86,248.84,4.0186]
[1737612402264,83.1,248.86,248.84,316.0186]
[1737612402463,83.1,248.86,248.83,0.03]
[1737612402669,23.776884,248.85,248.83,0.03]
[1737612403970,118.50624134,248.84,248.83,0.03]
[1737612405049,106.876884,248.84,248.83,0.03]
[1737612407175,23.776884,248.84,248.83,0.03]
[1737612411776,23.776884,248.84,248.68,11.62935734]
[1737612411777,83.1,248.77,248.68,11.62935734]
[1737612411967,11.62935734,248.75,248.66,11.62935734]
[1737612412678,23.776884,248.74,248.66,11.62935734]
[1737612412865,27.797284,248.74,248.66,11.62935734]
[1737612413065,23.776884,248.74,248.68,11.62935734]
[1737612413466,23.776884,248.74,248.66,15.65085734]
[1737612413773,23.776884,248.74,248.66,323.62935734]
[1737612414274,27.797184,248.74,248.66,323.62935734]
[1737612415981,106.876884,248.72,248.66,323.62935734]
[1737612417184,106.876884,248.72,248.66,11.62935734]
[1737612419077,83.1,248.72,248.66,15.65085734]
[1737612419284,83.1,248.72,248.68,11.62935734]
[1737612420181,83.1,248.72,248.7,11.62935734]
[1737612420869,83.1,248.72,248.68,11.62935734]
[1737612421182,83.1,248.72,248.65,37.31135734]
[1737612421865,83.1,248.71,248.67,11.62935734]
[1737612422375,83.1,248.71,248.68,4.0212]
[1737612422597,83.1,248.71,248.66,4.0514]
[1737612423285,83.1,248.7,248.66,0.03]
[1737612423765,83.1,248.7,248.66,312.03]
[1737612427891,83.1,248.69,248.66,312.03]
[1737612428586,23.776884,248.68,248.66,0.03]
[1737612429381,106.876884,248.67,248.66,0.03]
[1737612430161,30.051684,248.67,248.66,0.03]
[1737612430371,23.776884,248.64,248.54,7.447591]
[1737612430575,7.447591,248.55,248.43,7.447591]
[1737612430792,83.1,248.59,248.42,4.0254]
[1737612430972,83.1,248.59,248.5,7.447591]
[1737612431364,7.447591,248.57,248.48,7.447591]
[1737612431701,23.776884,248.58,248.5,7.447591]
[1737612431867,7.447591,248.63,248.52,7.447591]
[1737612432186,7.447591,248.65,248.56,7.447591]
[1737612432365,7.447591,248.67,248.58,7.447591]
[1737612432565,23.776884,248.66,248.58,7.447591]
[1737612432780,7.447591,248.67,248.58,7.447591]
[1737612433100,87.1211,248.69,248.6,7.447591]
[1737612433101,90.547591,248.69,248.6,7.447591]
[1737612433305,23.776884,248.68,248.6,7.447591]
[1737612433674,35.41800552,248.68,248.59,11.64112152]